Cogmind - Beta 14 @@@ ROGUE MODE // 2025.03.20 @ 14:19:09 Player: CLown Bot Result: Destroyed by G-47 Trooper with Particle Gun Performance ------------- Evolutions (1) 500 Regions Visited (2) 400 Robots Destroyed (42) 210 Value Destroyed (910) 910 Prototype IDs (0) 0 Alien Tech Used (0) 0 Bonus (12) 12 TOTAL SCORE: 2032 Bonus ------- High Alert Combat Kills 12 Cogmind --------- Core Integrity 0/400 Matter 28/300 Energy 56/125 System Corruption 2% Temperature Cool (15) Movement Core (450) Ox8 Location -9/Materials Parts ------- > --- POWER (1) -------- Light Ion Engine > --- PROPULSION (3) --- (None) > --- UTILITY (3) ------ Large Storage Unit Targeting Computer Light Armor Plating > --- WEAPON (2) ------- Mini Grenade Launcher > --- INVENTORY (15) --- Aluminum Leg Aluminum Leg Backup Propulsion I Backup Propulsion I Heat Sink Mini Grenade Launcher Welding Torch Mining Claw Peak State ------------ > --- POWER ------------ Ion Engine > --- PROPULSION ------- Cesium-ion Thruster Cesium-ion Thruster Cesium-ion Thruster > --- UTILITY ---------- Large Storage Unit Small Matter Pod Targeting Computer > --- WEAPON ----------- EM Shotgun Mini Grenade Launcher > --- INVENTORY -------- Aluminum Leg Aluminum Leg Aluminum Leg Aluminum Leg Backup Propulsion I Backup Propulsion I Cesium-ion Thruster Heat Sink Shock Rifle Mini Grenade Launcher Mini Grenade Launcher Welding Torch Mining Claw [Rating: 18] Favorites ----------- Power Ion Engine Engine Ion Engine Propulsion Aluminum Leg Leg Aluminum Leg Hover Unit Backup Propulsion I Flight Unit Cesium-ion Thruster Utility Small Matter Pod Storage Small Matter Pod Processor Targeting Computer Protection Light Armor Plating Weapon Mini Grenade Launcher Energy Gun EM Shotgun Launcher Mini Grenade Launcher Slashing Weapon Mining Claw Build | -11 -10 -9 ------- Run | Yrd Mat Mat Slots Evolved 2 | . . 2 Power . | . . . Propulsion 1 | . . 1 Utility 1 | . . 1 Weapon . | . . . Parts Attached 36 | 6 11 19 Power 5 | 1 2 2 Engine 5 | 1 2 2 Core . | . . . Reactor . | . . . Propulsion 12 | 2 3 7 Treads . | . . . Leg 9 | 2 3 4 Wheel . | . . . Hover . | . . . Flight 3 | . . 3 Utility 6 | 1 3 2 Device . | . . . Storage 4 | 1 3 . Processor 1 | . . 1 Hackware . | . . . Protection 1 | . . 1 Artifact . | . . . Weapon 13 | 2 3 8 Energy Gun 6 | 2 1 3 Energy Cannon . | . . . Ballistic Gun . | . . . Ballistic Cannon . | . . . Launcher 5 | . 1 4 Special Weapon . | . . . Impact Weapon . | . . . Slashing Weapon 2 | . 1 1 Piercing Weapon . | . . . Special Melee Weapon . | . . . Unidentified Prototypes . | . . . Parts Lost 10 | . . 10 Power 2 | . . 2 Propulsion 3 | . . 3 Utility 1 | . . 1 Weapon 4 | . . 4 Highest Loss Streak 6 | . . 6 To Critical Strikes . | . . . Average Slot Usage (%) 92 | . 97 80 Engine 11 | . 13 5 Leg 25 | . 26 21 Storage 25 | . 26 21 Processor 3 | . . 11 Energy Gun 13 | . 16 7 Launcher 8 | . 8 10 Slashing Weapon 1 | . 2 1 Peak Build Rating 18 | 6 10 18 Average Rating 8 | 3 8 10 On Entrance 5 | . 6 10 Naked Turns . | . . . Heaviest Build 31 | 10 30 31 Greatest Support 30 | 20 20 30 Greatest Overweight (x) 7 | . 1 7 Average Overweight (x) . | . . . Largest Inventory Capacity 15 | 8 15 15 Average Capacity 11 | 6 10 15 Most Carried 13 | 2 10 13 Average Carried 7 | . 5 11 Final Capacity 15 | 8 15 15 Final Carried 10 | . 10 8 Class Distribution -------------------- 100% | Mutant Dominant Class ---------------- Mutant | -10/Materials Mutant | -9/Materials Resources | -11 -10 -9 ----------- Run | Yrd Mat Mat Matter Collected 615 | 209 359 47 Remotely . | . . . Salvage Created 1015 | . 593 422 Parts 80 | . 49 31 Haulers Intercepted . | . . . Recyclers Shooed 2 | . 2 . Parts Field Recycled . | . . . Retrieved Matter . | . . . Parts Self-Destructed . | . . . Prevented . | . . . Kills | -11 -10 -9 ------- Run | Yrd Mat Mat Combat Hostiles Destroyed 26 | . 15 11 Guns 9 | . 7 2 AOE 17 | . 8 9 Classes Destroyed 9 | . 7 2 Worker 3 | . 3 . Builder 3 | . . 3 Tunneler 3 | . 1 2 Recycler 3 | . 3 . Operator 1 | . 1 . Watcher 3 | . 1 2 Swarmer 8 | . 6 2 Grunt 17 | . 9 8 Sentry 1 | . . 1 Best Kill Streak 9 | . 6 9 Combat Bots Only 5 | . 3 5 Max Kills in Single Turn 3 | . 3 2 Gunslinging . | . . . Exploded 3 | . 3 2 Melee . | . . . Uniques/NPCs Destroyed . | . . . Combat | -11 -10 -9 -------- Run | Yrd Mat Mat Hostile Shots Fired 199 | . 75 124 Missed 72 | . 22 50 Damage Taken 1667 | . 581 1086 Core 534 | . 129 405 Absorbed by Shields . | . . . Regen/Repaired (Parts) 68 | . 68 . Core Remaining (%) 74 | 100 48 . Volleys Fired 89 | . 59 30 Largest 2 | . 2 2 Hottest 95 | . 80 95 Shots Fired 138 | . 101 37 Gun 102 | . 86 16 Cannon . | . . . Launcher 36 | . 15 21 Special . | . . . Kinetic . | . . . Thermal 64 | . 64 . Explosive 32 | . 15 17 Electromagnetic 42 | . 22 20 Robot Hit Streak 14 | . 14 13 Robot Miss Streak 4 | . 4 2 Penetration Max . | . . . Secondary Targets 3 | . 2 1 Max Gunslinging Chain 1 | . 1 1 Shots Hit Robots 74 | . 50 24 Core Hits 63 | . 39 24 Critical Kills . | . . . Critical Parts Destroyed . | . . . Critical Strikes . | . . . Melee Attacks 1 | . 1 . Impact . | . . . Slashing 1 | . 1 . Piercing . | . . . Sneak Attacks 1 | . 1 . Combat Hostiles . | . . . Follow-up Attacks . | . . . Damage Inflicted 2712 | . 1271 1441 Guns 754 | . 532 222 Cannons . | . . . Explosions 1914 | . 695 1219 Melee 44 | . 44 . Ramming . | . . . Kinetic . | . . . Thermal 517 | . 384 133 Explosive 1632 | . 663 969 Electromagnetic 519 | . 180 339 Impact . | . . . Slashing 44 | . 44 . Piercing . | . . . Highest Corruption 2 | . . 2 Average Corruption 1 | . . 1 Corruption Purged . | . . . Corruption Blocked . | . . . Effects 2 | . . 2 Matter Fused 1 | . . 1 Data Loss (minor) 1 | . . 1 Overload Shots . | . . . Overflow Damage 191 | . 37 154 Projectiles . | . . . Explosions 191 | . 37 154 Melee . | . . . Knockbacks . | . . . Impact . | . . . Kinetic . | . . . Secondary . | . . . Self-Inflicted Damage 272 | . 97 175 Shots 9 | . 2 7 Rammed . | . . . Targets Rammed . | . . . Kicked . | . . . Crushed . | . . . Highest Temperature 234 | . 234 24 Average Temperature 52 | . 59 13 Received Heat Transfer 561 | . 108 453 Siege Activations . | . . . Robots Corrupted . | . . . Combat Hostiles . | . . . Parts Fried 1 | . . 1 Impact Corruptions . | . . . Robots Melted . | . . . Combat Hostiles . | . . . Parts Melted 1 | . 1 . Heat Transferred 975 | . 875 100 Parts Sabotaged . | . . . Parts Stolen . | . . . Parts Stripped . | . . . Power Chain Reactions 2 | . 1 1 Alert | -11 -10 -9 ------- Run | Yrd Mat Mat Peak Influence 514 | . 241 514 Initial 101 | . . 101 Average 153 | . 116 258 Maximum Alert Level 2 | . 1 2 Low Security (%) 70 | 100 93 15 Level 1 25 | . 6 70 Level 2 4 | . . 14 Level 3 . | . . . Level 4 . | . . . Level 5 . | . . . High Security . | . . . Max Security . | . . . Squads Dispatched 4 | . 3 1 Investigation 2 | . 2 . Extermination . | . . . Reinforcement 2 | . 1 1 Assault . | . . . Garrison . | . . . Intercept . | . . . Searches Triggered . | . . . Construction Impeded 1 | . . 1 Haulers Reinforced . | . . . Active Scanning Responses . | . . . Cargo Convoy Interrupts . | . . . Stealth | -11 -10 -9 --------- Run | Yrd Mat Mat Distress Signals 3 | . 1 2 Communications Jammed . | . . . Distress Signals . | . . . Times Spotted 35 | . 19 16 Peak Tracking Total 5 | . 4 5 Tactical Retreats 2 | . . 2 Traps | -11 -10 -9 ------- Run | Yrd Mat Mat Traps Triggered 1 | . 1 . Indirectly . | . . . Trap Hack Attempts . | . . . Triggered . | . . . Disarmed . | . . . Reprogrammed . | . . . Reused . | . . . Traps Extracted . | . . . Installed . | . . . Triggered . | . . . Machines | -11 -10 -9 ---------- Run | Yrd Mat Mat Machines Disabled 6 | . 4 2 Max in Single Turn 2 | . 2 1 Machines Repaired . | . . . Machines Dismantled . | . . . Machines Sabotaged . | . . . Overloaded Fab Kills . | . . . Hacking | -11 -10 -9 --------- Run | Yrd Mat Mat Machines Accessed 4 | . 4 . Terminals 2 | . 2 . Fabricators . | . . . Repair Stations 1 | . 1 . Recycling Units 1 | . 1 . Scanalyzers . | . . . Garrison Access . | . . . Total Hacks 17 | . 17 . Successful 8 | . 8 . Failed 9 | . 9 . Catastrophic 2 | . 2 . Database Lockouts . | . . . Manual 1 | . 1 . Terminals 7 | . 7 . Fabricators . | . . . Repair Stations 8 | . 8 . Recycling Units 2 | . 2 . Scanalyzers . | . . . Garrison Access . | . . . Terminal Hacks 3 | . 3 . Record 1 | . 1 . Alert Level 1 | . 1 . Locate Traps 1 | . 1 . Fabricator Hacks . | . . . Repair Station Hacks 5 | . 5 . Scan Component 2 | . 2 . Repair 2 | . 2 . Refit 1 | . 1 . Recycling Unit Hacks . | . . . Scanalyzer . | . . . Garrison Access Hacks . | . . . Unauthorized Hacks . | . . . Terminals . | . . . Fabricators . | . . . Repair Stations . | . . . Recycling Units . | . . . Scanalyzers . | . . . Garrison Access . | . . . Data Cores Recovered . | . . . Used . | . . . Hacking Detections 4 | . 4 . Full Trace Events 3 | . 3 . Feedback Events . | . . . Feedback Blocked . | . . . Robot Schematics Acquired . | . . . Robots Built . | . . . Authchips . | . . . Time . | . . . Total Robot Build Rating . | . . . Part Schematics Acquired . | . . . Parts Built . | . . . Authchips . | . . . Time . | . . . Total Part Build Rating . | . . . Parts Repaired 2 | . 2 . Time 52 | . 52 . Parts Recycled . | . . . Recycled Matter . | . . . Retrieved Matter . | . . . Retrieved Components . | . . . Parts Scanalyzed . | . . . Part Schematics Acquired . | . . . Parts Damaged . | . . . Bothacking | -11 -10 -9 ------------ Run | Yrd Mat Mat Used RIF Installer . | . . . Robots Hacked . | . . . Non-combat . | . . . Combat . | . . . Robot Hacks Applied . | . . . Relay Couplers Released . | . . . Fabnet Peak Effective % . | . . . Robots Rewired . | . . . Allies Hacked . | . . . Hacks Repelled . | . . . Allies | -11 -10 -9 -------- Run | Yrd Mat Mat Total Allies . | . . . Largest Group . | . . . Highest-Rated Group . | . . . Highest-Rated Ally . | . . . Total Orders . | . . . Ally Attacks . | . . . Total Damage . | . . . Kills . | . . . Allies Corrupted . | . . . Allies Melted . | . . . Intel | -11 -10 -9 ------- Run | Yrd Mat Mat Robot Analysis Total . | . . . Derelict Logs Recovered . | . . . Drone Launches . | . . . Drone Recoveries . | . . . Exploration | -11 -10 -9 ------------- Run | Yrd Mat Mat Turns Passed 1434 | 60 950 424 Spaces Moved 744 | 48 522 174 Core 16 | 12 . 4 Treads . | . . . Legs 715 | 36 514 165 Wheels . | . . . Hover 8 | . 8 . Flight 5 | . . 5 Fastest Speed 50 | 50 120 109 Average Speed 147 | 102 144 167 Slowest Speed 400 | 120 190 400 Overloaded Moves . | . . . Propulsion Burnouts . | . . . Robots Hopped . | . . . Cave-ins Triggered . | . . . Exploration Rate (%) 22 | 4 47 16 Regions Visited 2 Branch Regions . Pre-discovered Areas . | . . . Known Exits Taken . | . . . Unknown Exits Taken 2 | 1 1 . Scrap Searched . | . . . Spaces Dug 11 | . 11 . Terrain Destroyed 206 | . 76 130 Melee . | . . . Projectile . | . . . AOE 206 | . 76 130 Terrain Rammed . | . . . Walls Destroyed . | . . . Machines Disabled . | . . . Actions | -11 -10 -9 --------- Run | Yrd Mat Mat Total 943 | 59 614 270 Wait 33 | . . 33 Move 742 | 47 521 174 Hop . | . . . Pick Up 32 | 6 16 10 Fast Attach . | . . . Attach 22 | 6 5 11 Detach 1 | . 1 . Swap 14 | . 6 8 Drop 9 | . 5 4 Fire 89 | . 59 30 Melee 1 | . 1 . Ram . | . . . Kick . | . . . Crush . | . . . Escape Stasis . | . . . Rewire . | . . . Trap . | . . . Miscellaneous . | . . . Route ------- -11/Scrapyard -10/Materials -9/Materials History --------- Turn | Location | Event 8 | -11/Scrapyard | Discovered new exit (range 13) 61 | -11/Scrapyard | Entered Materials 186 | -10/Materials | Discovered new exit (range 6) 306 | -10/Materials | Build established: Mutant 579 | -10/Materials | Repaired Aluminum Leg 605 | -10/Materials | Repaired Aluminum Leg 904 | -10/Materials | Core integrity fell below 50% 1011 | -10/Materials | Entered another Materials area 1011 | -9/Materials | Evolved 2 slots: Propulsion x1, Utility x1 1292 | -9/Materials | Lost 3 parts (1p2n) 1395 | -9/Materials | Core integrity fell below 50% 1424 | -9/Materials | Core integrity fell below 20% 1435 | -9/Materials | Destroyed by G-47 Trooper with Particle Gun Last Messages --------------- U-05 Engineer lays Concrete. U-05 Engineer builds a Wall. EM Shotgun destroyed. U-05 Engineer destroyed. Sml. Matter Pod destroyed. The unstable cave ceiling collapses. Acquired 14 matter. The unstable cave ceiling collapses. U-05 Engineer builds a Wall. U-05 Engineer lays Concrete. U-05 Engineer builds a Wall. Acquired Lgt. Ion Engine. S-10 Pest IFF system glitched. Shock Rifle destroyed. U-05 Engineer lays Concrete. U-05 Engineer builds a Door. [Achievement: Remodeling] G-34 Mercenary destroyed. Mni. Grenade Launcher destroyed. Destroyed Mni. Grenade Launcher. Map ----- +----------------------------------------------------+ | | | | | | | | | | | | | | | | | | | | | | | | | | | | | | | ??????????????????????????????????????????######## | | ???????????????????????????????????????#### !! | | ?????????????????????###############???# != | | ?????????????????????# # #???#### != | | ?????????????????????# # ##### #% | | ?????????????????????# #"" ## #####/# | | ?????????????????????# #"T ! = | | ?????????????????????# # " # # | | ?????????????????????? # = ! | | ?????????????????####### # +# # =%[% | | ?????????? s a@=g [ u # # ## | | ?????????????????#######* = == % # #? | | ??????????????????????# % = ### # ### ### | | ??????????????????????# % %=# ## ### #?#| | | ??????????????????????# ! # #######?# #?# | | ??????????????????????# ## ##???????# #?# """ | | ??????????????????????# ## #????????#+#?# """ | | ??????????????????????# ## #????????????# """ | | ??????????????????????######+## ?????????????# | | ??????????????????????????????# ???????????####### | | ?????????????????????????????? ???????????# ## | | ?????????????????????????????? ??????? / | | ??????????????????????????????? ???????????# | | | ??????????????????????????????? ???????????# | | ??????????????????????????????? ???????????## # | | ????????????????????????????????????????????# # | | ????????????????????????????????????????????# # | | ????????????????????????????????????????????# # | | ????????????????????????????????????????????# + | | ????????????????????????????????????######### ## | | ???????????????????????????????????? # ## | | ????????????????????????????????????""""" # ##= | | ???????????????????????????????????#""""" # | | ???????????????????????????????????#""""" | | ???????????????????????????????????#""""" | +----------------------------------------------------+ Best States ------------- Heat Dissipation 28 Energy Generation 10 Energy Capacity 250 Matter Stores 350 Matter Capacity 350 Sight Range 16 Terrain Scan Density 10 Evasion (%) 55 Targeting Accuracy 5 Item Schematics ----------------- None Robot Schematics ------------------ None Fabricated ------------ Nothing Alien Tech Used ----------------- None Achievements -------------- Part-time Mechanic Remodeling Challenges ------------ None Game ------ Seed ResetShockInterpreter Manual? 0 Play Time 00:21:37 Cumulative 1.9 hours Start 2025.03.20 @ 13:54:20 End 2025.03.20 @ 14:19:09 Sessions 1 Manual Loads 0 Difficulty Rogue Special Mode None Game No. 8 Rogue 8 Adventurer 0 Explorer 0 Win Type - Total 0 Types 0/0/0/0/0/0/0/0/0 Lore% 0 Gallery% 6 Achievement% 5 Wizard Run 0 Options --------- Layout 1 ASCII 0 Keyboard 0 Movement Mouse Keybinds 0 Fullscreen 2 Font 24/Smallcaps Map View 50x35 Zoom Use 0% Tactical HUD 0 Map Filters NONE Filters NONE Steam 1 RUN: b791d594-a603-4e65-951e-fbda451283a9